[Event "10th Floripa Open 2024"]
[Site "Florianopolis"]
[Date "2024.01.22"]
[Round "3.4"]
[White "Salinas Herrera, Pablo"]
[Black "Nemeth Junior, Henrique"]
[Result "1-0"]
[ECO "B10"]
[WhiteElo "2477"]
[BlackElo "2147"]
[Annotator "ChessBase"]
[PlyCount "59"]
[EventDate "2024.01.10"]
[EventType "swiss"]
[EventCountry "BRA"]
[SourceTitle "playchess.com"]
[Source "ChessBase"]
[SourceQuality "1"]
[TimeControl "5400+30"]

1. e4 {[%emt 0:02:24]} c6 {[%emt 0:00:12]} 2. Nf3 {[%emt 0:02:21]} d5 {[%emt 0:00:08]} 3. d3 {[%emt 0:00:19]} dxe4 {[%emt 0:00:12]} 4. dxe4 {[%emt 0:00:05]} Qxd1+ {[%emt 0:00:15]} 5. Kxd1 {[%emt 0:00:07]} Nf6 {[%emt 0:00:13]} 6. Nfd2 {[%emt 0:00:12]} g5 {[%emt 0:00:38]} 7. Nc3 {[%emt 0:03:17]} Rg8 {[%emt 0:18:17]} 8. a4 {[%emt 0:08:27]} b6 {[%emt 0:16:56]} 9. Bd3 {[%emt 0:14:12]} Nbd7 {[%emt 0:04:32]} 10. a5 {[%emt 0:14:32]} b5 {[%emt 0:01:20]} 11. Nf3 {[%emt 0:01:17]} h6 {[%emt 0:10:16]} 12. h4 {[%emt 0:07:59]} gxh4 {[%emt 0:00:31]} 13. Nxh4 {[%emt 0:05:36]} Ne5 {[%emt 0:06:28]} 14. Bf4 {[%emt 0:00:17]} Nxd3 {[%emt 0:01:07]} 15. cxd3 {[%emt 0:00:05]} Be6 {[%emt 0:00:29]} 16. Ke2 {[%emt 0:00:29]} a6 {[%emt 0:02:55]} 17. Be3 {[%emt 0:05:02]} Nd7 {[%emt 0:03:45]} 18. g3 {[%emt 0:01:24]} O-O-O {[%emt 0:02:44]} 19. Nf5 {[%emt 0:18:04]} Bxf5 {[%emt 0:29:02]} 20. exf5 {[%emt 0:00:04]} Ne5 {[%emt 0:00:00]} 21. Rad1 {[%emt 0:00:12]} Ng4 {[%emt 0:00:00]} 22. Bb6 {[%emt 0:02:29]} Re8 {[%emt 0:00:00]} 23. Ne4 {[%emt 0:02:40]} e6 {[%emt 0:00:00]} 24. Rh5 {[%emt 0:00:08]} Be7 {[%emt 0:00:00]} 25. fxe6 {[%emt 0:01:12]} fxe6 {[%emt 0:00:00]} 26. Bd4 {[%emt 0:00:31]} e5 {[%emt 0:00:00]} 27. Bxe5 {[%emt 0:00:31]} Nxe5 {[%emt 0:00:00]} 28. Rxe5 {[%emt 0:00:05]} Bb4 {[%emt 0:00:00]} 29. d4 {[%emt 0:01:19]} c5 {[%emt 0:00:00]} 30. Nd6+ {[%emt 0:00:06]} 1-0

[Event "10th Floripa Open 2024"]
[Site "Florianopolis"]
[Date "2024.01.22"]
[Round "3.5"]
[White "Jordao Barbosa, Marcio"]
[Black "Galego, Luis"]
[Result "0-1"]
[ECO "B38"]
[WhiteElo "2146"]
[BlackElo "2468"]
[Annotator "RC"]
[PlyCount "102"]
[EventDate "2024.01.10"]
[EventType "swiss"]
[EventCountry "BRA"]
[SourceTitle "playchess.com"]
[Source "ChessBase"]
[SourceQuality "1"]
[TimeControl "5400+30"]

1. e4 {[%emt 0:00:04]} c5 {[%emt 0:04:27]} 2. Nf3 {[%emt 0:00:09]} a6 {[%emt 0:00:17]} 3. c4 {[%emt 0:00:10]} d6 {[%emt 0:00:21]} 4. d4 {[%emt 0:00:07]} cxd4 {[%emt 0:03:02]} 5. Nxd4 {[%emt 0:00:11]} Nf6 {[%emt 0:01:37]} 6. Nc3 {[%emt 0:00:08]} g6 {[%emt 0:01:39]} 7. Be2 {[%emt 0:02:48]} Bg7 {[%emt 0:00:05]} 8. O-O {[%emt 0:00:06]} O-O {[%emt 0:00:19]} 9. Be3 {[%emt 0:00:04]} Nc6 {[%emt 0:04:33]} 10. h3 {[%emt 0:01:49]} Bd7 {[%emt 0:01:34]} 11. Qc2 {[%emt 0:05:20]} Rc8 {[%emt 0:07:21]} 12. Rac1 {[%emt 0:06:48]} Nxd4 {[%emt 0:17:33]} 13. Bxd4 {[%emt 0:00:11]} Bc6 {[%emt 0:01:27]} 14. Rfd1 {[%emt 0:00:27]} Qa5 {[%emt 0:03:50]} 15. Nd5 {[%emt 0:06:34]} Bxd5 {[%emt 0:08:03]} 16. exd5 {[%emt 0:00:19]} Nd7 {[%emt 0:02:23]} 17. Bg4 {[%emt 0:25:56]} f5 {[%emt 0:00:52]} 18. Bxg7 {[%emt 0:01:06]} Kxg7 {[%emt 0:00:05]} 19. Be2 {[%emt 0:00:05]} Ne5 {[%emt 0:04:16]} 20. f4 {[%emt 0:05:49]} Nd7 {[%emt 0:00:30]} 21. Qc3+ {[%emt 0:02:39]} Qxc3 {[%emt 0:00:05]} 22. Rxc3 {[%emt 0:00:04]} a5 {[%emt 0:01:33]} 23. Rb3 {[%emt 0:02:03]} Rc7 {[%emt 0:02:46]} 24. Rb5 {[%emt 0:00:26]} b6 {[%emt 0:02:07]} 25. Rc1 {[%emt 0:00:44]} Rb8 {[%emt 0:04:20]} 26. Rc3 {[%emt 0:00:43]} Rc5 {[%emt 0:01:27]} 27. Rcb3 {[%emt 0:01:18]} Kf6 {[%emt 0:01:21]} 28. Kf2 {[%emt 0:01:09]} Rxb5 {[%emt 0:05:13]} 29. Rxb5 {[%emt 0:00:10]} g5 {[%emt 0:00:50]} 30. g3 {[%emt 0:00:51]} gxf4 {[%emt 0:01:01]} 31. gxf4 {[%emt 0:00:08]} Nc5 {[%emt 0:00:23]} 32. h4 {[%emt 0:02:37]} h6 {[%emt 0:07:53]} 33. Bf3 {[%emt 0:02:02]} Kf7 {[%emt 0:02:53]} 34. Bh5+ {[%emt 0:01:39]} Kg7 {[%emt 0:00:59]} 35. Ke3 {[%emt 0:00:31]} Kf6 {[%emt 0:01:52]} 36. Bf3 {[%emt 0:00:33]} Nd7 {[%emt 0:02:14]} 37. b3 {[%emt 0:00:20]} Nc5 {[%emt 0:00:18]} 38. Kf2 {[%emt 0:01:23]} Na6 {[%emt 0:00:12]} 39. a4 {[%emt 0:03:27]} Nc7 {[%emt 0:00:10]} 40. h5 {[%emt 0:00:23]} Nxb5 {[%emt 0:00:07]} 41. axb5 {[%emt 0:00:04]} Ra8 {[%emt 0:01:01]} 42. Bd1 {[%emt 0:00:09]} e6 {[%emt 0:01:26]} 43. dxe6 {[%emt 0:00:15]} Kxe6 {[%emt 0:00:12]} 44. Bf3 {[%emt 0:01:34]} Ra7 {[%emt 0:02:34]} 45. Ke3 {[%emt 0:00:23]} a4 {[%emt 0:00:38]} 46. bxa4 {[%emt 0:00:10]} Rxa4 {[%emt 0:00:05]} 47. Kd4 {[%emt 0:00:09]} Ra3 {[%emt 0:00:07]} 48. Be2 {[%emt 0:00:37]} Rh3 {[%emt 0:00:34]} 49. Bd1 {[%emt 0:00:17]} Rh4 {[%emt 0:00:23]} 50. Ke3 {[%emt 0:00:09]} d5 {[%emt 0:00:18]} 51. Be2 {[%emt 0:00:47]} Kd6 {[%emt 0:00:56]} 0-1

[Event "10th Floripa Open 2024"]
[Site "Florianopolis"]
[Date "2024.01.22"]
[Round "3.6"]
[White "Starke, Bruno Orlando"]
[Black "Haldorsen, Benjamin"]
[Result "1-0"]
[ECO "A15"]
[WhiteElo "2145"]
[BlackElo "2427"]
[Annotator "ChessBase"]
[PlyCount "107"]
[EventDate "2024.01.10"]
[EventType "swiss"]
[EventCountry "BRA"]
[SourceTitle "playchess.com"]
[Source "ChessBase"]
[SourceQuality "1"]
[TimeControl "5400+30"]

1. Nf3 {[%emt 0:00:04]} Nf6 {[%emt 0:02:17]} 2. c4 {[%emt 0:00:25]} b6 {[%emt 0:00:49]} 3. g3 {[%emt 0:01:43]} Bb7 {[%emt 0:00:09]} 4. Bg2 {[%emt 0:00:08]} g6 {[%emt 0:00:29]} 5. O-O {[%emt 0:00:27]} Bg7 {[%emt 0:00:34]} 6. Nc3 {[%emt 0:01:44]} O-O {[%emt 0:00:41]} 7. Re1 {[%emt 0:10:21]} d6 {[%emt 0:13:22]} 8. e4 {[%emt 0:01:26]} e5 {[%emt 0:01:53]} 9. d4 {[%emt 0:04:20]} exd4 {[%emt 0:02:48]} 10. Nxd4 {[%emt 0:00:06]} Nbd7 {[%emt 0:00:14]} 11. f3 {[%emt 0:16:58]} Nc5 {[%emt 0:07:53]} 12. Be3 {[%emt 0:04:33]} a5 {[%emt 0:02:10]} 13. Qc2 {[%emt 0:03:47]} Nfd7 {[%emt 0:01:52]} 14. Rad1 {[%emt 0:02:25]} Ne5 {[%emt 0:01:25]} 15. b3 {[%emt 0:02:12]} Re8 {[%emt 0:00:13]} 16. Bf2 {[%emt 0:02:53]} Nc6 {[%emt 0:05:38]} 17. Ndb5 {[%emt 0:05:45]} a4 {[%emt 0:03:28]} 18. Nd5 {[%emt 0:02:57]} axb3 {[%emt 0:04:32]} 19. axb3 {[%emt 0:00:01]} Rc8 {[%emt 0:05:17]} 20. f4 {[%emt 0:09:43]} Na6 {[%emt 0:15:00]} 21. e5 {[%emt 0:08:41]} Ncb4 {[%emt 0:01:17]} 22. Nxb4 {[%emt 0:00:47]} Nxb4 {[%emt 0:00:05]} 23. Qd2 {[%emt 0:01:24]} Bxg2 {[%emt 0:00:07]} 24. Kxg2 {[%emt 0:00:23]} Na6 {[%emt 0:00:37]} 25. exd6 {[%emt 0:00:34]} Rxe1 {[%emt 0:00:14]} 26. Rxe1 {[%emt 0:01:39]} Qd7 {[%emt 0:01:12]} 27. Re7 {[%emt 0:04:45]} Qc6+ {[%emt 0:01:42]} 28. Qd5 {[%emt 0:01:12]} cxd6 {[%emt 0:00:10]} 29. Nxd6 {[%emt 0:03:31]} Qxd5+ {[%emt 0:02:02]} 30. cxd5 {[%emt 0:00:02]} Rc2 {[%emt 0:00:01]} 31. Re8+ {[%emt 0:04:14]} Bf8 {[%emt 0:00:01]} 32. Nc4 {[%emt 0:01:04]} Nc7 {[%emt 0:01:01]} 33. d6 {[%emt 0:01:07]} Nxe8 {[%emt 0:04:22]} 34. d7 {[%emt 0:00:06]} Nf6 {[%emt 0:00:06]} 35. d8=Q {[%emt 0:00:17]} Ng4 {[%emt 0:00:05]} 36. Ne5 {[%emt 0:01:40]} Rxf2+ {[%emt 0:07:33]} 37. Kg1 {[%emt 0:00:54]} Nxe5 {[%emt 0:00:14]} 38. Kxf2 {[%emt 0:00:23]} Nc6 {[%emt 0:01:54]} 39. Qxb6 {[%emt 0:00:24]} Nb4 {[%emt 0:00:05]} 40. Ke2 {[%emt 0:01:45]} h5 {[%emt 0:01:45]} 41. Qd4 {[%emt 0:01:08]} Nc6 {[%emt 0:02:32]} 42. Qc4 {[%emt 0:00:35]} Nb4 {[%emt 0:00:10]} 43. h3 {[%emt 0:00:47]} Kg7 {[%emt 0:00:11]} 44. g4 {[%emt 0:00:34]} hxg4 {[%emt 0:00:01]} 45. hxg4 {[%emt 0:00:06]} Kg8 {[%emt 0:00:10]} 46. Kf3 {[%emt 0:00:47]} Be7 {[%emt 0:00:54]} 47. Ke4 {[%emt 0:00:40]} Kg7 {[%emt 0:00:52]} 48. f5 {[%emt 0:01:36]} Na2 {[%emt 0:00:34]} 49. g5 {[%emt 0:00:54]} gxf5+ {[%emt 0:02:08]} 50. Kxf5 {[%emt 0:00:11]} Nb4 {[%emt 0:00:01]} 51. Qd4+ {[%emt 0:00:35]} Kg8 {[%emt 0:00:48]} 52. Qd7 {[%emt 0:00:37]} Kf8 {[%emt 0:01:59]} 53. g6 {[%emt 0:00:27]} fxg6+ {[%emt 0:02:05]} 54. Kxg6 {[%emt 0:00:16]} 1-0

[Event "10th Floripa Open 2024"]
[Site "Florianopolis"]
[Date "2024.01.22"]
[Round "3.7"]
[White "Silva, Kaua Marques"]
[Black "Rodriguez Vila, Andres"]
[Result "0-1"]
[ECO "B33"]
[WhiteElo "2142"]
[BlackElo "2407"]
[Annotator "RC"]
[PlyCount "76"]
[EventDate "2024.01.10"]
[EventType "swiss"]
[EventCountry "BRA"]
[SourceTitle "playchess.com"]
[Source "ChessBase"]
[SourceQuality "1"]
[TimeControl "5400+30"]

1. e4 {[%emt 0:00:42]} c5 {[%emt 0:00:21]} 2. Nf3 {[%emt 0:01:33]} Nc6 {[%emt 0:00:06]} 3. d4 {[%emt 0:00:14]} cxd4 {[%emt 0:00:06]} 4. Nxd4 {[%emt 0:00:03]} Qb6 {[%emt 0:00:12]} 5. Nb3 {[%emt 0:00:49]} e6 {[%emt 0:00:09]} 6. Bd3 {[%emt 0:01:04]} Nf6 {[%emt 0:00:09]} 7. Nc3 {[%emt 0:00:17]} a6 {[%emt 0:00:24]} 8. Be3 {[%emt 0:00:11]} Qc7 {[%emt 0:00:05]} 9. f4 {[%emt 0:00:43]} d5 {[%emt 0:01:27]} 10. exd5 {[%emt 0:11:42]} exd5 {[%emt 0:04:37]} 11. O-O {[%emt 0:05:16]} Bd6 {[%emt 0:01:45]} 12. Qf3 {[%emt 0:04:17]} O-O {[%emt 0:03:38]} 13. Nxd5 {[%emt 0:03:43]} Nxd5 {[%emt 0:00:06]} 14. Qxd5 {[%emt 0:00:18]} Nb4 {[%emt 0:00:06]} 15. Qf3 {[%emt 0:07:37]} Nxd3 {[%emt 0:01:51]} 16. cxd3 {[%emt 0:00:06]} Bf5 {[%emt 0:00:30]} 17. Rac1 {[%emt 0:07:13]} Qd7 {[%emt 0:01:31]} 18. Nd4 {[%emt 0:01:52]} Bg4 {[%emt 0:02:31]} 19. Qf2 {[%emt 0:04:55]} Rfe8 {[%emt 0:00:21]} 20. h3 {[%emt 0:06:57]} Be6 {[%emt 0:01:27]} 21. a3 {[%emt 0:05:00]} Bd5 {[%emt 0:01:45]} 22. Rfe1 {[%emt 0:02:49]} Be7 {[%emt 0:01:31]} 23. Ne2 {[%emt 0:03:08]} Qf5 {[%emt 0:06:26]} 24. Nc3 {[%emt 0:00:57]} Bc6 {[%emt 0:00:08]} 25. Rcd1 {[%emt 0:02:12]} Rad8 {[%emt 0:00:45]} 26. g4 {[%emt 0:04:18]} Qc8 {[%emt 1:11:33]} 27. Bb6 {[%emt 0:01:04]} Rd6 {[%emt 0:00:00]} 28. d4 {[%emt 0:04:42]} Rh6 {[%emt 0:00:00]} 29. Qg3 {[%emt 0:21:18]} Bh4 {[%emt 0:00:00]} 30. Rxe8+ {[%emt 0:00:00]} Bxe8 {[%emt 0:00:00]} 31. Qg2 {[%emt 0:00:00]} Rxb6 {[%emt 0:00:00]} 32. g5 {[%emt 0:00:00]} Bc6 {[%emt 0:00:00]} 33. d5 {[%emt 0:00:00]} Bd7 {[%emt 0:00:00]} 34. Kh2 {[%emt 0:00:00]} Qc4 {[%emt 0:00:00]} 35. Ne4 {[%emt 0:00:00]} Bf5 {[%emt 0:00:00]} 36. d6 {[%emt 0:00:00]} Qa4 {[%emt 0:00:00]} 37. Rd5 {[%emt 0:00:00]} Qxe4 {[%emt 0:00:00]} 38. d7 {[%emt 0:01:19]} Qxf4+ {[%emt 0:00:00]} 0-1

[Event "10th Floripa Open 2024"]
[Site "Florianopolis"]
[Date "2024.01.22"]
[Round "3.8"]
[White "Do Valle Cardoso, Lucas"]
[Black "Zampronha, Wladimir Camilo"]
[Result "1-0"]
[ECO "D02"]
[WhiteElo "2392"]
[BlackElo "2121"]
[Annotator "RC"]
[PlyCount "73"]
[EventDate "2024.01.10"]
[EventType "swiss"]
[EventCountry "BRA"]
[SourceTitle "playchess.com"]
[Source "ChessBase"]
[SourceQuality "1"]
[TimeControl "5400+30"]

1. d4 {[%emt 0:02:40]} Nf6 {[%emt 0:00:13]} 2. Bf4 {[%emt 0:00:05]} e6 {[%emt 0:01:18]} 3. Nf3 {[%emt 0:00:14]} c5 {[%emt 0:00:33]} 4. e3 {[%emt 0:00:04]} d5 {[%emt 0:00:36]} 5. c3 {[%emt 0:00:10]} Nc6 {[%emt 0:00:11]} 6. Nbd2 {[%emt 0:00:06]} Bd6 {[%emt 0:00:16]} 7. Bg3 {[%emt 0:00:04]} O-O {[%emt 0:00:12]} 8. Bd3 {[%emt 0:00:07]} Qe7 {[%emt 0:00:25]} 9. Ne5 {[%emt 0:00:06]} Nd7 {[%emt 0:00:27]} 10. Nxd7 {[%emt 0:00:07]} Qxd7 {[%emt 0:00:29]} 11. dxc5 {[%emt 0:00:21]} Bxc5 {[%emt 0:00:23]} 12. Nf3 {[%emt 0:00:05]} Qe7 {[%emt 0:07:24]} 13. Bh4 {[%emt 0:10:03]} f6 {[%emt 0:00:56]} 14. Qc2 {[%emt 0:03:40]} g5 {[%emt 0:03:00]} 15. Bg3 {[%emt 0:00:06]} e5 {[%emt 0:00:44]} 16. Bf5 {[%emt 0:05:03]} e4 {[%emt 0:05:19]} 17. Bxc8 {[%emt 0:00:10]} Raxc8 {[%emt 0:00:35]} 18. Ng1 {[%emt 0:03:21]} Ne5 {[%emt 0:07:57]} 19. Bxe5 {[%emt 0:01:25]} Qxe5 {[%emt 0:00:38]} 20. Ne2 {[%emt 0:04:18]} Rf7 {[%emt 0:07:58]} 21. O-O-O {[%emt 0:03:04]} Rd7 {[%emt 0:00:49]} 22. Kb1 {[%emt 0:02:08]} b5 {[%emt 0:02:29]} 23. Qb3 {[%emt 0:01:43]} Rb8 {[%emt 0:00:26]} 24. a3 {[%emt 0:04:42]} a5 {[%emt 0:00:11]} 25. Rd2 {[%emt 0:01:14]} a4 {[%emt 0:01:55]} 26. Qd1 {[%emt 0:01:42]} Bf8 {[%emt 0:06:16]} 27. g4 {[%emt 0:04:38]} f5 {[%emt 0:10:20]} 28. Nd4 {[%emt 0:00:19]} Rc8 {[%emt 0:05:08]} 29. Nxf5 {[%emt 0:04:21]} Bxa3 {[%emt 0:00:43]} 30. bxa3 {[%emt 0:00:39]} Rxc3 {[%emt 0:00:29]} 31. Rxd5 {[%emt 0:03:21]} Qe6 {[%emt 0:03:48]} 32. Rxd7 {[%emt 0:04:06]} Rb3+ {[%emt 0:00:06]} 33. Kc1 {[%emt 0:00:09]} Qc6+ {[%emt 0:04:15]} 34. Qc2 {[%emt 0:00:10]} Qxd7 {[%emt 0:01:03]} 35. Rd1 {[%emt 0:00:30]} Rd3 {[%emt 0:01:11]} 36. Rxd3 {[%emt 0:00:30]} exd3 {[%emt 0:00:02]} 37. Qc3 {[%emt 0:00:28]} 1-0

[Event "10th Floripa Open 2024"]
[Site "Florianopolis"]
[Date "2024.01.22"]
[Round "3.9"]
[White "Do Nascimento, Christian Almeida"]
[Black "Perez Gormaz, Matias"]
[Result "0-1"]
[ECO "E11"]
[WhiteElo "2123"]
[BlackElo "2388"]
[Annotator "RC"]
[PlyCount "124"]
[EventDate "2024.01.10"]
[EventType "swiss"]
[EventCountry "BRA"]
[SourceTitle "playchess.com"]
[Source "ChessBase"]
[SourceQuality "1"]
[TimeControl "5400+30"]

1. d4 {[%emt 0:10:58]} d5 {[%emt 0:38:51]} 2. c4 {[%emt 0:00:45]} e6 {[%emt 0:00:17]} 3. Nf3 {[%emt 0:00:37]} Nf6 {[%emt 0:00:27]} 4. g3 {[%emt 0:00:34]} Bb4+ {[%emt 0:01:56]} 5. Bd2 {[%emt 0:00:26]} a5 {[%emt 0:00:10]} 6. a3 {[%emt 0:01:40]} Be7 {[%emt 0:01:04]} 7. Bg2 {[%emt 0:00:23]} O-O {[%emt 0:00:16]} 8. Qc2 {[%emt 0:02:04]} c6 {[%emt 0:02:53]} 9. O-O {[%emt 0:00:26]} Nbd7 {[%emt 0:00:05]} 10. Rd1 {[%emt 0:04:33]} h6 {[%emt 0:05:15]} 11. Bf4 {[%emt 0:06:23]} a4 {[%emt 0:05:36]} 12. Nbd2 {[%emt 0:00:42]} Nh5 {[%emt 0:00:14]} 13. Rac1 {[%emt 0:14:44]} f5 {[%emt 0:05:40]} 14. Be5 {[%emt 0:02:26]} g5 {[%emt 0:07:05]} 15. h3 {[%emt 0:03:49]} Nxe5 {[%emt 0:01:47]} 16. Nxe5 {[%emt 0:00:31]} Bd6 {[%emt 0:00:52]} 17. Ndf3 {[%emt 0:01:18]} Nf6 {[%emt 0:01:42]} 18. c5 {[%emt 0:02:17]} Bc7 {[%emt 0:01:47]} 19. Nd3 {[%emt 0:05:45]} Qe7 {[%emt 0:07:24]} 20. Nfe5 {[%emt 0:04:57]} Qg7 {[%emt 0:00:03]} 21. e3 {[%emt 0:00:41]} Ne4 {[%emt 0:00:31]} 22. Kh2 {[%emt 0:00:43]} Bd7 {[%emt 0:02:44]} 23. Qe2 {[%emt 0:02:36]} Be8 {[%emt 0:00:15]} 24. Rg1 {[%emt 0:00:40]} Kh8 {[%emt 0:00:47]} 25. f3 {[%emt 0:02:30]} Nf6 {[%emt 0:00:03]} 26. Rb1 {[%emt 0:00:25]} Nd7 {[%emt 0:04:36]} 27. f4 {[%emt 0:01:01]} Nxe5 {[%emt 0:02:20]} 28. fxe5 {[%emt 0:01:36]} Bg6 {[%emt 0:01:35]} 29. Bf3 {[%emt 0:00:23]} Qh7 {[%emt 0:00:44]} 30. Bh5 {[%emt 0:00:23]} Bxh5 {[%emt 0:00:18]} 31. Qxh5 {[%emt 0:00:15]} f4 {[%emt 0:00:37]} 32. Qe2 {[%emt 0:01:34]} fxe3 {[%emt 0:02:08]} 33. Qxe3 {[%emt 0:01:27]} Qe4 {[%emt 0:00:03]} 34. Rbe1 {[%emt 0:01:00]} Rf3 {[%emt 0:00:36]} 35. Qxe4 {[%emt 0:00:23]} dxe4 {[%emt 0:00:02]} 36. Nb4 {[%emt 0:00:15]} Rb3 {[%emt 0:02:56]} 37. Rg2 {[%emt 0:00:50]} Ba5 {[%emt 0:00:02]} 38. Rxe4 {[%emt 0:00:27]} Bxb4 {[%emt 0:00:03]} 39. axb4 {[%emt 0:00:16]} Rxb4 {[%emt 0:00:34]} 40. h4 {[%emt 0:01:06]} Rf8 {[%emt 0:03:31]} 41. Kh3 {[%emt 0:00:31]} Kg7 {[%emt 0:01:00]} 42. hxg5 {[%emt 0:01:45]} hxg5 {[%emt 0:01:58]} 43. Kg4 {[%emt 0:00:13]} Kg6 {[%emt 0:00:01]} 44. Rge2 {[%emt 0:02:08]} Rf1 {[%emt 0:00:56]} 45. d5 {[%emt 0:01:32]} Rxe4+ {[%emt 0:00:26]} 46. Rxe4 {[%emt 0:00:06]} cxd5 {[%emt 0:00:41]} 47. Rxa4 {[%emt 0:00:13]} Rc1 {[%emt 0:00:08]} 48. Ra7 {[%emt 0:01:47]} Rxc5 {[%emt 0:00:37]} 49. Rxb7 {[%emt 0:00:10]} Rc4+ {[%emt 0:00:01]} 50. Kf3 {[%emt 0:00:18]} Kf5 {[%emt 0:00:05]} 51. b4 {[%emt 0:01:36]} Rc3+ {[%emt 0:00:38]} 52. Kf2 {[%emt 0:00:17]} Kxe5 {[%emt 0:00:19]} 53. b5 {[%emt 0:00:06]} Ke4 {[%emt 0:00:06]} 54. Re7 {[%emt 0:00:14]} e5 {[%emt 0:00:34]} 55. b6 {[%emt 0:00:03]} Rb3 {[%emt 0:00:19]} 56. b7 {[%emt 0:00:07]} Kd4 {[%emt 0:01:50]} 57. Rc7 {[%emt 0:01:07]} e4 {[%emt 0:00:31]} 58. Re7 {[%emt 0:00:05]} Rb2+ {[%emt 0:00:22]} 59. Kf1 {[%emt 0:00:17]} Kd3 {[%emt 0:00:09]} 60. Re5 {[%emt 0:01:10]} d4 {[%emt 0:00:05]} 61. Rxg5 {[%emt 0:00:37]} Rxb7 {[%emt 0:00:09]} 62. Ra5 {[%emt 0:00:05]} Ke3 {[%emt 0:00:10]} 0-1

[Event "10th Floripa Open 2024"]
[Site "Florianopolis"]
[Date "2024.01.22"]
[Round "3.10"]
[White "Perez, Maximiliano"]
[Black "Lima, Kleyton Alcantara"]
[Result "1/2-1/2"]
[ECO "C55"]
[WhiteElo "2383"]
[BlackElo "2119"]
[Annotator "RC"]
[PlyCount "99"]
[EventDate "2024.01.10"]
[EventType "swiss"]
[EventCountry "BRA"]
[SourceTitle "playchess.com"]
[Source "ChessBase"]
[SourceQuality "1"]
[TimeControl "5400+30"]

1. e4 {[%emt 0:00:04]} e5 {[%emt 0:02:52]} 2. Nf3 {[%emt 0:00:31]} Nc6 {[%emt 0:00:09]} 3. Bc4 {[%emt 0:01:03]} Nf6 {[%emt 0:01:41]} 4. d3 {[%emt 0:00:11]} Be7 {[%emt 0:00:15]} 5. O-O {[%emt 0:00:16]} O-O {[%emt 0:00:18]} 6. Re1 {[%emt 0:00:10]} d6 {[%emt 0:00:14]} 7. a3 {[%emt 0:00:56]} Na5 {[%emt 0:02:51]} 8. Ba2 {[%emt 0:00:11]} c5 {[%emt 0:00:21]} 9. b4 {[%emt 0:00:15]} Nc6 {[%emt 0:00:32]} 10. bxc5 {[%emt 0:00:10]} dxc5 {[%emt 0:00:06]} 11. h3 {[%emt 0:00:11]} h6 {[%emt 0:07:11]} 12. Bb2 {[%emt 0:01:24]} Qc7 {[%emt 0:01:42]} 13. Nbd2 {[%emt 0:01:50]} Re8 {[%emt 0:07:52]} 14. Nc4 {[%emt 0:01:36]} Bf8 {[%emt 0:00:25]} 15. Ne3 {[%emt 0:00:07]} b5 {[%emt 0:14:12]} 16. Nh2 {[%emt 0:12:57]} Be6 {[%emt 0:12:39]} 17. Bxe6 {[%emt 0:04:24]} Rxe6 {[%emt 0:03:56]} 18. a4 {[%emt 0:00:28]} b4 {[%emt 0:00:21]} 19. Nhg4 {[%emt 0:04:15]} Nxg4 {[%emt 0:06:10]} 20. hxg4 {[%emt 0:01:13]} Rd8 {[%emt 0:01:10]} 21. g3 {[%emt 0:01:10]} Na5 {[%emt 0:10:17]} 22. c4 {[%emt 0:03:15]} bxc3 {[%emt 0:01:40]} 23. Bxc3 {[%emt 0:01:01]} Nc6 {[%emt 0:00:11]} 24. Qe2 {[%emt 0:04:44]} Qd7 {[%emt 0:00:55]} 25. Red1 {[%emt 0:00:07]} Rd6 {[%emt 0:02:55]} 26. Nd5 {[%emt 0:00:03]} Rg6 {[%emt 0:02:22]} 27. Ne3 {[%emt 1:01:28]} Rd6 {[%emt 0:01:11]} 28. Nd5 {[%emt 0:00:00]} Rg6 {[%emt 0:00:22]} 29. f3 {[%emt 0:00:00]} h5 {[%emt 0:01:03]} 30. Ne3 {[%emt 0:00:00]} Nd4 {[%emt 0:06:18]} 31. Bxd4 {[%emt 0:00:00]} exd4 {[%emt 0:00:02]} 32. Nc4 {[%emt 0:00:00]} Qc7 {[%emt 0:00:26]} 33. e5 {[%emt 0:00:00]} hxg4 {[%emt 0:00:09]} 34. f4 {[%emt 0:00:00]} Rh6 {[%emt 0:00:41]} 35. Qe4 {[%emt 0:00:00]} f5 {[%emt 0:00:46]} 36. Qxf5 {[%emt 0:00:00]} Qb7 {[%emt 0:03:05]} 37. Qe4 {[%emt 0:00:00]} Qb3 {[%emt 0:00:02]} 38. Rd2 {[%emt 0:00:00]} Rb8 {[%emt 0:00:14]} 39. a5 {[%emt 0:00:00]} Rb4 {[%emt 0:01:59]} 40. f5 {[%emt 0:00:00]} Ra4 {[%emt 0:00:57]} 41. Rad1 {[%emt 0:00:00]} Ra2 {[%emt 0:01:26]} 42. Qxg4 {[%emt 0:00:00]} Rxd2 {[%emt 0:01:26]} 43. Rxd2 {[%emt 0:00:00]} Qb7 {[%emt 0:00:04]} 44. Qe4 {[%emt 0:00:00]} Qb1+ {[%emt 0:00:05]} 45. Kf2 {[%emt 0:00:00]} Rh2+ {[%emt 0:00:30]} 46. Kf3 {[%emt 0:00:00]} Qf1+ {[%emt 0:00:06]} 47. Kg4 {[%emt 0:00:00]} Qh3+ {[%emt 0:00:09]} 48. Kf3 {[%emt 0:02:27]} Qf1+ {[%emt 0:00:11]} 49. Kg4 {[%emt 0:00:27]} Qh3+ {[%emt 0:00:06]} 50. Kf3 {[%emt 0:01:03]} 1/2-1/2